[Event "Early-Titled-Tuesday-Blitz-January-30-2024"]
[Site "Chess.com"]
[Date "2024.01.30"]
[Round "2"]
[White "GMRAVEN_ON_YOUTUBE"]
[Black "m_ezat"]
[Result "1-0"]
[WhiteElo "2771"]
[BlackElo "2478"]
[TimeControl "180+1"]
[EndTime "8:19:11 PST"]
[Termination "GMRAVEN_ON_YOUTUBE won by checkmate"]

1. f4 {[%clk 0:03:00.9]} 1... e5 {[%clk 0:02:57]} 2. fxe5 {[%clk 0:03:01.8]}
2... d6 {[%clk 0:02:56.7]} 3. exd6 {[%clk 0:03:02.7]} 3... Nf6 {[%clk
0:02:54.7]} 4. dxc7 {[%clk 0:03:02.2]} 4... Qxc7 {[%clk 0:02:53.5]} 5. Nf3
{[%clk 0:03:02.2]} 5... Bd6 {[%clk 0:02:53.5]} 6. d3 {[%clk 0:02:52.7]} 6... O-O
{[%clk 0:02:49.2]} 7. e4 {[%clk 0:02:52.2]} 7... Re8 {[%clk 0:02:48.8]} 8. Nc3
{[%clk 0:02:52.2]} 8... Bg4 {[%clk 0:02:44.6]} 9. Bg5 {[%clk 0:01:30.7]} 9...
Nc6 {[%clk 0:02:40.9]} 10. Qd2 {[%clk 0:01:25.4]} 10... Bxf3 {[%clk 0:02:31.8]}
11. gxf3 {[%clk 0:01:25.5]} 11... Nd4 {[%clk 0:02:32]} 12. Bg2 {[%clk
0:01:13.2]} 12... Nh5 {[%clk 0:02:09.6]} 13. O-O-O {[%clk 0:01:06.4]} 13... Bf4
{[%clk 0:01:58.5]} 14. Bxf4 {[%clk 0:01:04.1]} 14... Nxf4 {[%clk 0:01:59.4]} 15.
Rdg1 {[%clk 0:01:01.8]} 15... b5 {[%clk 0:01:56.2]} 16. Kb1 {[%clk 0:00:58.7]}
16... Rac8 {[%clk 0:01:54.9]} 17. Rc1 {[%clk 0:00:34.7]} 17... b4 {[%clk
0:01:54]} 18. Nd1 {[%clk 0:00:34.7]} 18... Nde2 {[%clk 0:01:44.7]} 19. Ne3
{[%clk 0:00:33.5]} 19... Nxc1 {[%clk 0:01:38.1]} 20. Rxc1 {[%clk 0:00:33.4]}
20... g6 {[%clk 0:01:37.5]} 21. h4 {[%clk 0:00:32.8]} 21... a5 {[%clk
0:01:34.8]} 22. Ng4 {[%clk 0:00:31.5]} 22... Re6 {[%clk 0:01:28.7]} 23. e5
{[%clk 0:00:30.7]} 23... Nd5 {[%clk 0:01:23.7]} 24. f4 {[%clk 0:00:28.7]} 24...
Nc3+ {[%clk 0:01:23.8]} 25. Ka1 {[%clk 0:00:28.2]} 25... a4 {[%clk 0:00:40.7]}
26. Nf6+ {[%clk 0:00:27.9]} 26... Rxf6 {[%clk 0:00:37.5]} 27. exf6 {[%clk
0:00:28.8]} 27... a3 {[%clk 0:00:37.5]} 28. bxc3 {[%clk 0:00:25.2]} 28... bxc3
{[%clk 0:00:37.2]} 29. Qe1 {[%clk 0:00:25.7]} 29... Qxf4 {[%clk 0:00:22.3]} 30.
Qf1 {[%clk 0:00:23]} 30... Qxh4 {[%clk 0:00:17.3]} 31. Rb1 {[%clk 0:00:22.9]}
31... Qg5 {[%clk 0:00:15.7]} 32. Bh3 {[%clk 0:00:20.4]} 32... Re8 {[%clk
0:00:14.6]} 33. Qe2 {[%clk 0:00:17]} 33... Rf8 {[%clk 0:00:09.9]} 34. Qe7 {[%clk
0:00:16]} 34... Qh6 {[%clk 0:00:04.8]} 35. d4 {[%clk 0:00:13.3]} 35... Kh8
{[%clk 0:00:03]} 36. d5 {[%clk 0:00:12.8]} 36... Rg8 {[%clk 0:00:02.9]} 37. Be6
{[%clk 0:00:10.4]} 37... Qd2 {[%clk 0:00:01.8]} 38. Qxf7 {[%clk 0:00:09.7]}
38... Qxc2 {[%clk 0:00:02.1]} 39. Qxg8# {[%clk 0:00:09.9]} 1-0

[Event "Early-Titled-Tuesday-Blitz-January-30-2024"]
[Site "Chess.com"]
[Date "2024.01.30"]
[Round "2"]
[White "BestStelker"]
[Black "HansOnTwitch"]
[Result "0-1"]
[WhiteElo "2677"]
[BlackElo "3203"]
[TimeControl "180+1"]
[EndTime "8:19:12 PST"]
[Termination "HansOnTwitch won on time"]

1. e4 {[%clk 0:03:00.9]} 1... c5 {[%clk 0:02:58.4]} 2. Nf3 {[%clk 0:03:00.7]}
2... d6 {[%clk 0:02:58.3]} 3. d4 {[%clk 0:02:58.8]} 3... cxd4 {[%clk 0:02:59.2]}
4. Nxd4 {[%clk 0:02:59.7]} 4... Nf6 {[%clk 0:02:59.8]} 5. Nc3 {[%clk 0:03:00.3]}
5... a6 {[%clk 0:03:00.4]} 6. Be3 {[%clk 0:02:46.3]} 6... e5 {[%clk 0:02:56.1]}
7. Nb3 {[%clk 0:02:44.3]} 7... Be6 {[%clk 0:02:56.2]} 8. h3 {[%clk 0:02:23.9]}
8... Nc6 {[%clk 0:02:29.4]} 9. g4 {[%clk 0:02:10.2]} 9... d5 {[%clk 0:02:29.6]}
10. exd5 {[%clk 0:02:10.6]} 10... Nxd5 {[%clk 0:02:30.5]} 11. Bg2 {[%clk
0:02:07.1]} 11... Nxe3 {[%clk 0:02:24.4]} 12. Qxd8+ {[%clk 0:02:08]} 12... Nxd8
{[%clk 0:02:15.6]} 13. fxe3 {[%clk 0:02:06.2]} 13... Bb4 {[%clk 0:02:15.8]} 14.
O-O-O {[%clk 0:01:53.8]} 14... Bxc3 {[%clk 0:02:15]} 15. bxc3 {[%clk 0:01:54.7]}
15... Rc8 {[%clk 0:02:14.6]} 16. Kb2 {[%clk 0:01:31.8]} 16... Ke7 {[%clk
0:02:14.4]} 17. Rd2 {[%clk 0:01:16.7]} 17... b6 {[%clk 0:02:11.8]} 18. Rhd1
{[%clk 0:01:14.2]} 18... Rc7 {[%clk 0:02:12.2]} 19. Nc1 {[%clk 0:01:02.5]} 19...
f6 {[%clk 0:02:07.7]} 20. Nd3 {[%clk 0:00:59.3]} 20... a5 {[%clk 0:02:08.1]} 21.
Nf2 {[%clk 0:00:56.9]} 21... Nf7 {[%clk 0:02:07.6]} 22. Ne4 {[%clk 0:00:54]}
22... Rd7 {[%clk 0:01:52.1]} 23. Rxd7+ {[%clk 0:00:49.4]} 23... Bxd7 {[%clk
0:01:53]} 24. Bf1 {[%clk 0:00:32.2]} 24... Bc6 {[%clk 0:01:50.3]} 25. Nd2 {[%clk
0:00:29.7]} 25... Rd8 {[%clk 0:01:47.9]} 26. Kc1 {[%clk 0:00:30.4]} 26... Nd6
{[%clk 0:01:43]} 27. Bd3 {[%clk 0:00:21.9]} 27... g6 {[%clk 0:01:40.6]} 28. h4
{[%clk 0:00:20.4]} 28... a4 {[%clk 0:01:39.1]} 29. Rf1 {[%clk 0:00:17.4]} 29...
e4 {[%clk 0:01:38.5]} 30. Be2 {[%clk 0:00:16.7]} 30... f5 {[%clk 0:01:39]} 31.
h5 {[%clk 0:00:15.3]} 31... Rf8 {[%clk 0:01:25.6]} 32. hxg6 {[%clk 0:00:14.7]}
32... hxg6 {[%clk 0:01:26.5]} 33. gxf5 {[%clk 0:00:14.1]} 33... Nxf5 {[%clk
0:01:27.4]} 34. Nc4 {[%clk 0:00:07.8]} 34... Ng3 {[%clk 0:01:26]} 35. Rxf8
{[%clk 0:00:03.4]} 35... Nxe2+ {[%clk 0:01:26]} 36. Kd2 {[%clk 0:00:03.9]} 36...
Kxf8 {[%clk 0:01:26.6]} 37. Ne5 {[%clk 0:00:03.6]} 37... Bb5 {[%clk 0:01:20.4]}
38. c4 {[%clk 0:00:04]} 38... Be8 {[%clk 0:01:20.4]} 39. Kxe2 {[%clk 0:00:03.3]}
39... Ke7 {[%clk 0:01:21.1]} 40. Ng4 {[%clk 0:00:02.3]} 40... Kd6 {[%clk
0:01:19.6]} 41. Kd2 {[%clk 0:00:02]} 41... Bd7 {[%clk 0:01:19.8]} 42. Nf2 {[%clk
0:00:02]} 42... Ke5 {[%clk 0:01:19.2]} 43. Kc3 {[%clk 0:00:01.6]} 43... g5
{[%clk 0:01:19.8]} 44. c5 {[%clk 0:00:02.1]} 44... bxc5 {[%clk 0:01:20.7]} 45.
Kc4 {[%clk 0:00:03]} 45... g4 {[%clk 0:01:21.1]} 46. Nh1 {[%clk 0:00:02.7]}
46... Kd6 {[%clk 0:01:19]} 47. Ng3 {[%clk 0:00:02.7]} 47... Kc6 {[%clk
0:01:15.4]} 48. a3 {[%clk 0:00:02.9]} 48... Be6+ {[%clk 0:01:15.3]} 49. Kc3
{[%clk 0:00:03.3]} 49... Kd5 {[%clk 0:01:15.7]} 50. Nf1 {[%clk 0:00:02.7]} 50...
Ke5 {[%clk 0:01:15]} 51. Ng3 {[%clk 0:00:03.2]} 51... Bd5 {[%clk 0:01:14.6]} 52.
Kd2 {[%clk 0:00:02.7]} 52... Kf6 {[%clk 0:01:15.2]} 53. Ke2 {[%clk 0:00:02.8]}
53... Kg5 {[%clk 0:01:15]} 54. Kf2 {[%clk 0:00:03.4]} 54... Kh4 {[%clk
0:01:15.6]} 55. Kg2 {[%clk 0:00:03.8]} 55... Ba2 {[%clk 0:01:10.1]} 56. Nf5+
{[%clk 0:00:03.2]} 56... Kg5 {[%clk 0:01:09.6]} 57. Ng3 {[%clk 0:00:04.1]} 57...
Kg6 {[%clk 0:01:08.3]} 58. c3 {[%clk 0:00:04]} 58... Bb1 {[%clk 0:01:06.1]} 59.
Kf2 {[%clk 0:00:04.3]} 59... Bd3 {[%clk 0:01:06.2]} 60. Kg2 {[%clk 0:00:03.6]}
60... Kf6 {[%clk 0:01:06.5]} 61. Kf2 {[%clk 0:00:03.3]} 61... Ke6 {[%clk
0:01:07.2]} 62. Ke1 {[%clk 0:00:02]} 62... Kd5 {[%clk 0:01:07.9]} 63. Kd2 {[%clk
0:00:02.1]} 63... Kc4 {[%clk 0:01:08.7]} 64. Nf5 {[%clk 0:00:01.3]} 64... Kb3
{[%clk 0:01:09.1]} 65. Ng3 {[%clk 0:00:01.2]} 65... Kxa3 {[%clk 0:01:09.3]} 66.
Kc1 {[%clk 0:00:01.6]} 66... Kb3 {[%clk 0:01:09.5]} 0-1

[Event "Early-Titled-Tuesday-Blitz-January-30-2024"]
[Site "Chess.com"]
[Date "2024.01.30"]
[Round "2"]
[White "Zarinur"]
[Black "LeoWin2012"]
[Result "1-0"]
[WhiteElo "2505"]
[BlackElo "2208"]
[TimeControl "180+1"]
[EndTime "8:19:13 PST"]
[Termination "Zarinur won on time"]

1. e4 {[%clk 0:03:00.9]} 1... e6 {[%clk 0:02:59.6]} 2. d4 {[%clk 0:02:57.5]}
2... d5 {[%clk 0:02:59.1]} 3. Nd2 {[%clk 0:02:56.8]} 3... c5 {[%clk 0:02:55.9]}
4. exd5 {[%clk 0:02:54.9]} 4... exd5 {[%clk 0:02:56.2]} 5. Ngf3 {[%clk
0:02:52.5]} 5... Nf6 {[%clk 0:02:50.4]} 6. Bb5+ {[%clk 0:02:51.5]} 6... Nc6
{[%clk 0:02:49.9]} 7. O-O {[%clk 0:02:49.5]} 7... Be7 {[%clk 0:02:41.8]} 8. dxc5
{[%clk 0:02:48.6]} 8... O-O {[%clk 0:02:26.5]} 9. Nb3 {[%clk 0:02:48.5]} 9... a6
{[%clk 0:02:25.3]} 10. Bxc6 {[%clk 0:02:48.1]} 10... bxc6 {[%clk 0:02:26.2]} 11.
Nfd4 {[%clk 0:02:47.3]} 11... Bd7 {[%clk 0:02:15.1]} 12. Bd2 {[%clk 0:02:30.8]}
12... Ne4 {[%clk 0:02:04.3]} 13. Ba5 {[%clk 0:02:29.7]} 13... Qc8 {[%clk
0:02:03]} 14. Bb6 {[%clk 0:02:26.9]} 14... Bd8 {[%clk 0:01:55.5]} 15. f3 {[%clk
0:02:19.5]} 15... Nf6 {[%clk 0:01:48.7]} 16. Bxd8 {[%clk 0:01:48.7]} 16... Qxd8
{[%clk 0:01:49.6]} 17. a4 {[%clk 0:01:47.4]} 17... a5 {[%clk 0:01:42.5]} 18. Qd2
{[%clk 0:01:42.3]} 18... Qc7 {[%clk 0:01:39.3]} 19. Rae1 {[%clk 0:01:39.3]}
19... Rfe8 {[%clk 0:01:23.1]} 20. Qg5 {[%clk 0:01:37]} 20... Rxe1 {[%clk
0:01:18.5]} 21. Rxe1 {[%clk 0:01:37.9]} 21... Re8 {[%clk 0:01:17.8]} 22. Rxe8+
{[%clk 0:01:34.9]} 22... Bxe8 {[%clk 0:01:18.4]} 23. Nf5 {[%clk 0:01:29.1]}
23... Nh5 {[%clk 0:01:03]} 24. Qxh5 {[%clk 0:01:19.6]} 24... g6 {[%clk
0:00:58.5]} 25. Qg5 {[%clk 0:00:54.4]} 25... f6 {[%clk 0:00:49.8]} 26. Qxf6
{[%clk 0:00:51.6]} 26... gxf5 {[%clk 0:00:49.6]} 27. Qxf5 {[%clk 0:00:49.2]}
27... Bg6 {[%clk 0:00:49.6]} 28. Qe6+ {[%clk 0:00:49.1]} 28... Kg7 {[%clk
0:00:49.4]} 29. Nd4 {[%clk 0:00:47.8]} 29... Qf4 {[%clk 0:00:48.5]} 30. Qe7+
{[%clk 0:00:39.2]} 30... Kg8 {[%clk 0:00:45.9]} 31. Ne6 {[%clk 0:00:33.7]} 31...
Qc1+ {[%clk 0:00:34.8]} 32. Kf2 {[%clk 0:00:32.5]} 32... Qd2+ {[%clk 0:00:27.3]}
33. Kg3 {[%clk 0:00:27.6]} 33... Qe1+ {[%clk 0:00:27.8]} 34. Kg4 {[%clk
0:00:22.1]} 34... h5+ {[%clk 0:00:14.3]} 35. Kg5 {[%clk 0:00:21.7]} 35... Qe5+
{[%clk 0:00:03.5]} 36. Kxg6 {[%clk 0:00:18.3]} 36... Qf6+ {[%clk 0:00:01.3]} 37.
Qxf6 {[%clk 0:00:16.4]} 1-0

[Event "Early-Titled-Tuesday-Blitz-January-30-2024"]
[Site "Chess.com"]
[Date "2024.01.30"]
[Round "2"]
[White "dennisodessa"]
[Black "Jumbo"]
[Result "1-0"]
[WhiteElo "2623"]
[BlackElo "2937"]
[TimeControl "180+1"]
[EndTime "8:19:14 PST"]
[Termination "dennisodessa won by resignation"]

1. d4 {[%clk 0:03:00.9]} 1... Nf6 {[%clk 0:02:52.4]} 2. c4 {[%clk 0:03:00.8]}
2... e6 {[%clk 0:02:52.9]} 3. Nc3 {[%clk 0:03:01.4]} 3... Bb4 {[%clk 0:02:53.5]}
4. Qc2 {[%clk 0:03:02.1]} 4... c5 {[%clk 0:02:52.6]} 5. dxc5 {[%clk 0:03:02.5]}
5... Bxc5 {[%clk 0:02:48]} 6. Nf3 {[%clk 0:03:01]} 6... O-O {[%clk 0:02:44.1]}
7. Bg5 {[%clk 0:03:00.9]} 7... h6 {[%clk 0:02:43.4]} 8. Bh4 {[%clk 0:02:58.7]}
8... b6 {[%clk 0:02:35.2]} 9. e3 {[%clk 0:02:57.2]} 9... Bb7 {[%clk 0:02:35]}
10. Be2 {[%clk 0:02:57.7]} 10... Be7 {[%clk 0:02:33.4]} 11. O-O {[%clk
0:02:57.4]} 11... d6 {[%clk 0:02:33.9]} 12. Nd4 {[%clk 0:02:47.9]} 12... a6
{[%clk 0:02:29.5]} 13. Bf3 {[%clk 0:02:42.6]} 13... Qc7 {[%clk 0:02:29.1]} 14.
Bxb7 {[%clk 0:02:38.8]} 14... Qxb7 {[%clk 0:02:28.9]} 15. Rac1 {[%clk
0:02:38.7]} 15... Nbd7 {[%clk 0:02:29.3]} 16. Rfd1 {[%clk 0:02:34]} 16... Rac8
{[%clk 0:02:29.6]} 17. Qe2 {[%clk 0:02:33.8]} 17... Rfe8 {[%clk 0:02:24.8]} 18.
b3 {[%clk 0:02:31.2]} 18... Nc5 {[%clk 0:02:23.7]} 19. f3 {[%clk 0:02:23]} 19...
d5 {[%clk 0:01:43.1]} 20. cxd5 {[%clk 0:02:03.7]} 20... Nxd5 {[%clk 0:01:35.7]}
21. Bxe7 {[%clk 0:02:04.6]} 21... Nxc3 {[%clk 0:01:26.1]} 22. Rxc3 {[%clk
0:02:02.8]} 22... Rxe7 {[%clk 0:01:24.3]} 23. Rdc1 {[%clk 0:01:55]} 23... a5
{[%clk 0:01:17.6]} 24. a3 {[%clk 0:01:48.7]} 24... Ra8 {[%clk 0:00:54.8]} 25.
Qb5 {[%clk 0:01:34.2]} 25... e5 {[%clk 0:00:34.3]} 26. Nc6 {[%clk 0:01:24]}
26... Rc7 {[%clk 0:00:34.2]} 27. Nxe5 {[%clk 0:01:22.7]} 27... Rac8 {[%clk
0:00:25.2]} 28. b4 {[%clk 0:01:11.5]} 28... axb4 {[%clk 0:00:24.9]} 29. axb4
{[%clk 0:01:10.8]} 29... Ne6 {[%clk 0:00:25.5]} 30. Rxc7 {[%clk 0:01:10.4]}
30... Rxc7 {[%clk 0:00:26.4]} 31. Qe8+ {[%clk 0:01:05.3]} 31... Nf8 {[%clk
0:00:26.7]} 32. Rxc7 {[%clk 0:00:31.6]} 32... Qxc7 {[%clk 0:00:27.6]} 33. Nc6
{[%clk 0:00:27.6]} 33... g6 {[%clk 0:00:23.3]} 34. h3 {[%clk 0:00:25.2]} 34...
Qd6 {[%clk 0:00:17.5]} 35. e4 {[%clk 0:00:24.3]} 35... Qd1+ {[%clk 0:00:16.4]}
36. Kh2 {[%clk 0:00:23.3]} 36... Qd6+ {[%clk 0:00:16.4]} 37. Ne5 {[%clk
0:00:12.9]} 37... f6 {[%clk 0:00:08.3]} 38. Qf7+ {[%clk 0:00:12.8]} 38... Kh8
{[%clk 0:00:08.8]} 39. Qxf8+ {[%clk 0:00:13.6]} 39... Qxf8 {[%clk 0:00:06.7]}
40. Nxg6+ {[%clk 0:00:14.3]} 40... Kg7 {[%clk 0:00:07.2]} 41. Nxf8 {[%clk
0:00:15.2]} 41... Kxf8 {[%clk 0:00:08]} 42. Kg3 {[%clk 0:00:15.1]} 42... Ke7
{[%clk 0:00:08.4]} 43. Kf4 {[%clk 0:00:16]} 43... Ke6 {[%clk 0:00:08.9]} 44. g4
{[%clk 0:00:15.3]} 1-0

[Event "Early-Titled-Tuesday-Blitz-January-30-2024"]
[Site "Chess.com"]
[Date "2024.01.30"]
[Round "2"]
[White "rasmussvane"]
[Black "wadsy27"]
[Result "1/2-1/2"]
[WhiteElo "2968"]
[BlackElo "2622"]
[TimeControl "180+1"]
[EndTime "8:19:15 PST"]
[Termination "Game drawn by agreement"]

1. Nf3 {[%clk 0:03:00.9]} 1... d5 {[%clk 0:02:55.9]} 2. g3 {[%clk 0:02:56.8]}
2... Bg4 {[%clk 0:02:55.6]} 3. Bg2 {[%clk 0:02:56.1]} 3... Nd7 {[%clk
0:02:53.9]} 4. O-O {[%clk 0:02:53.4]} 4... e6 {[%clk 0:02:48.7]} 5. h3 {[%clk
0:02:53.2]} 5... Bxf3 {[%clk 0:02:47.8]} 6. Bxf3 {[%clk 0:02:54.1]} 6... Ngf6
{[%clk 0:02:47.9]} 7. d3 {[%clk 0:02:51.4]} 7... c6 {[%clk 0:02:44.6]} 8. e4
{[%clk 0:02:46]} 8... Bd6 {[%clk 0:02:42.1]} 9. Nd2 {[%clk 0:02:45.1]} 9... O-O
{[%clk 0:02:39.7]} 10. d4 {[%clk 0:02:40.9]} 10... dxe4 {[%clk 0:02:36.7]} 11.
Nxe4 {[%clk 0:02:41.8]} 11... Nxe4 {[%clk 0:02:36.5]} 12. Bxe4 {[%clk
0:02:42.7]} 12... Nf6 {[%clk 0:02:36.5]} 13. Bg2 {[%clk 0:02:42.7]} 13... Qc7
{[%clk 0:02:16.4]} 14. Bg5 {[%clk 0:02:40.5]} 14... Be7 {[%clk 0:02:13.5]} 15.
c3 {[%clk 0:02:37.5]} 15... Rfd8 {[%clk 0:02:13.3]} 16. Qe2 {[%clk 0:02:27.3]}
16... h6 {[%clk 0:02:13.2]} 17. Bd2 {[%clk 0:02:19.5]} 17... Rd7 {[%clk
0:02:01.4]} 18. Rad1 {[%clk 0:02:09]} 18... Rad8 {[%clk 0:02:01.2]} 19. Bc1
{[%clk 0:02:05.5]} 19... a6 {[%clk 0:01:44.5]} 20. Rfe1 {[%clk 0:01:58.2]} 20...
c5 {[%clk 0:01:42.9]} 21. Bf4 {[%clk 0:01:36.8]} 21... Qb6 {[%clk 0:01:38.5]}
22. Be3 {[%clk 0:01:28.2]} 22... cxd4 {[%clk 0:01:20.8]} 23. Bxd4 {[%clk
0:01:20.4]} 23... Bc5 {[%clk 0:01:20.7]} 24. Bxc5 {[%clk 0:00:59]} 24... Qxc5
{[%clk 0:01:20.5]} 25. Rxd7 {[%clk 0:00:56.1]} 25... Rxd7 {[%clk 0:01:19.8]} 26.
Rd1 {[%clk 0:00:56.8]} 26... Rxd1+ {[%clk 0:01:06.5]} 27. Qxd1 {[%clk
0:00:57.7]} 27... b5 {[%clk 0:01:05.3]} 28. Bf3 {[%clk 0:00:53]} 28... g6 {[%clk
0:01:02]} 29. Kg2 {[%clk 0:00:53.3]} 29... Kg7 {[%clk 0:00:58.9]} 30. Qd3 {[%clk
0:00:52.2]} 30... h5 {[%clk 0:00:46.3]} 31. a4 {[%clk 0:00:37.5]} 31... h4
{[%clk 0:00:35.8]} 32. axb5 {[%clk 0:00:36.3]} 32... axb5 {[%clk 0:00:35]} 33.
gxh4 {[%clk 0:00:32]} 33... b4 {[%clk 0:00:19.3]} 34. c4 {[%clk 0:00:08.5]}
34... e5 {[%clk 0:00:13.6]} 35. b3 {[%clk 0:00:07.6]} 35... Qd4 {[%clk
0:00:10.1]} 36. Qxd4 {[%clk 0:00:07.3]} 36... exd4 {[%clk 0:00:10.9]} 37. Kf1
{[%clk 0:00:07.9]} 37... Nd7 {[%clk 0:00:10.3]} 38. Ke2 {[%clk 0:00:04.7]} 38...
Nc5 {[%clk 0:00:10.4]} 39. Kd2 {[%clk 0:00:05.4]} 39... Kh6 {[%clk 0:00:05.8]}
40. Kc2 {[%clk 0:00:05.3]} 40... f5 {[%clk 0:00:04.9]} 41. Be2 {[%clk
0:00:04.7]} 1/2-1/2

[Event "Early-Titled-Tuesday-Blitz-January-30-2024"]
[Site "Chess.com"]
[Date "2024.01.30"]
[Round "2"]
[White "Hovik_Hayrapetyan"]
[Black "marik_spb"]
[Result "0-1"]
[WhiteElo "2769"]
[BlackElo "2430"]
[TimeControl "180+1"]
[EndTime "8:19:15 PST"]
[Termination "marik_spb won on time"]

1. d4 {[%clk 0:03:00.9]} 1... Nf6 {[%clk 0:02:59.4]} 2. c4 {[%clk 0:02:51.5]}
2... e6 {[%clk 0:02:59.6]} 3. Nc3 {[%clk 0:02:50.1]} 3... Bb4 {[%clk 0:03:00]}
4. e3 {[%clk 0:02:40.7]} 4... O-O {[%clk 0:03:00.2]} 5. Bd3 {[%clk 0:02:35]}
5... d5 {[%clk 0:02:58.7]} 6. Nf3 {[%clk 0:02:31.8]} 6... dxc4 {[%clk
0:02:55.2]} 7. Bxc4 {[%clk 0:02:31.9]} 7... c5 {[%clk 0:02:56.1]} 8. O-O {[%clk
0:02:28.5]} 8... Nc6 {[%clk 0:02:54.6]} 9. a3 {[%clk 0:02:25.4]} 9... Ba5 {[%clk
0:02:10.8]} 10. d5 {[%clk 0:01:34.8]} 10... exd5 {[%clk 0:01:56.5]} 11. Nxd5
{[%clk 0:01:35.7]} 11... Be6 {[%clk 0:01:56.9]} 12. Nxf6+ {[%clk 0:01:25]} 12...
Qxf6 {[%clk 0:01:57.8]} 13. Qe2 {[%clk 0:01:13.3]} 13... Rac8 {[%clk 0:01:46.2]}
14. Bxe6 {[%clk 0:00:55.1]} 14... Qxe6 {[%clk 0:01:47.1]} 15. Bd2 {[%clk
0:00:55.4]} 15... Bxd2 {[%clk 0:01:35.5]} 16. Qxd2 {[%clk 0:00:55.6]} 16... b5
{[%clk 0:01:35.6]} 17. Rfd1 {[%clk 0:00:48.5]} 17... Rfd8 {[%clk 0:01:29.1]} 18.
Qc3 {[%clk 0:00:47.2]} 18... c4 {[%clk 0:01:25.5]} 19. h3 {[%clk 0:00:45]} 19...
h6 {[%clk 0:01:24.8]} 20. Nd4 {[%clk 0:00:38.5]} 20... Nxd4 {[%clk 0:01:23.6]}
21. Rxd4 {[%clk 0:00:39.4]} 21... Rxd4 {[%clk 0:01:19.8]} 22. Qxd4 {[%clk
0:00:40.3]} 22... a5 {[%clk 0:01:18]} 23. Qa7 {[%clk 0:00:20.9]} 23... Qe5
{[%clk 0:00:54.9]} 24. Rb1 {[%clk 0:00:20.7]} 24... b4 {[%clk 0:00:50.6]} 25.
axb4 {[%clk 0:00:17.4]} 25... axb4 {[%clk 0:00:51.5]} 26. Qb7 {[%clk 0:00:17.6]}
26... Qc5 {[%clk 0:00:45.3]} 27. Rc1 {[%clk 0:00:14.2]} 27... c3 {[%clk
0:00:43.6]} 28. bxc3 {[%clk 0:00:15.1]} 28... bxc3 {[%clk 0:00:43.3]} 29. Rc2
{[%clk 0:00:11.3]} 29... Rd8 {[%clk 0:00:40.7]} 30. Qb3 {[%clk 0:00:11.3]} 30...
Rd1+ {[%clk 0:00:37.1]} 31. Kh2 {[%clk 0:00:11.6]} 31... Qc7+ {[%clk 0:00:30.8]}
32. f4 {[%clk 0:00:11.7]} 32... Rd3 {[%clk 0:00:29.3]} 33. Re2 {[%clk
0:00:08.4]} 33... Qc5 {[%clk 0:00:24.7]} 34. e4 {[%clk 0:00:03]} 34... Qc7
{[%clk 0:00:16.2]} 35. e5 {[%clk 0:00:02.4]} 35... Rd4 {[%clk 0:00:12.8]} 36.
Rf2 {[%clk 0:00:01.1]} 36... Rc4 {[%clk 0:00:11]} 0-1

[Event "Early-Titled-Tuesday-Blitz-January-30-2024"]
[Site "Chess.com"]
[Date "2024.01.30"]
[Round "2"]
[White "only_strong_moves"]
[Black "carloseduar100"]
[Result "1-0"]
[WhiteElo "2534"]
[BlackElo "2275"]
[TimeControl "180+1"]
[EndTime "8:19:15 PST"]
[Termination "only_strong_moves won by checkmate"]

1. d4 {[%clk 0:03:00.9]} 1... d5 {[%clk 0:02:54.6]} 2. c4 {[%clk 0:03:00.9]}
2... e5 {[%clk 0:02:53.5]} 3. dxe5 {[%clk 0:03:00.5]} 3... d4 {[%clk 0:02:53.5]}
4. Nf3 {[%clk 0:03:01.3]} 4... Nc6 {[%clk 0:02:53.2]} 5. Nbd2 {[%clk 0:03:01.6]}
5... Bg4 {[%clk 0:02:51.5]} 6. g3 {[%clk 0:03:00.7]} 6... Nge7 {[%clk
0:02:50.7]} 7. Bg2 {[%clk 0:03:01.2]} 7... Ng6 {[%clk 0:02:51.2]} 8. O-O {[%clk
0:03:01.8]} 8... Qd7 {[%clk 0:02:51.4]} 9. Nb3 {[%clk 0:02:54.5]} 9... O-O-O
{[%clk 0:02:44]} 10. Qc2 {[%clk 0:02:40.8]} 10... h5 {[%clk 0:02:43.3]} 11. h4
{[%clk 0:02:38.4]} 11... Be7 {[%clk 0:02:29.6]} 12. Rd1 {[%clk 0:02:31.6]} 12...
Bxf3 {[%clk 0:02:29]} 13. exf3 {[%clk 0:02:22.6]} 13... Ngxe5 {[%clk 0:02:29.5]}
14. f4 {[%clk 0:02:22.1]} 14... Ng4 {[%clk 0:02:26.6]} 15. Be4 {[%clk
0:01:34.3]} 15... Kb8 {[%clk 0:02:24.5]} 16. f3 {[%clk 0:01:19.1]} 16... Nf6
{[%clk 0:02:18.4]} 17. Bf5 {[%clk 0:01:19.3]} 17... Qd6 {[%clk 0:02:18.5]} 18.
Be3 {[%clk 0:01:19.1]} 18... g6 {[%clk 0:02:06.2]} 19. Bh3 {[%clk 0:00:56.4]}
19... d3 {[%clk 0:01:55.9]} 20. Qc3 {[%clk 0:00:56.4]} 20... Ne8 {[%clk
0:01:27.7]} 21. Rd2 {[%clk 0:00:12.1]} 21... Bf6 {[%clk 0:01:27]} 22. Qc1 {[%clk
0:00:11.5]} 22... Qe7 {[%clk 0:01:20]} 23. Qe1 {[%clk 0:00:09]} 23... Nd6 {[%clk
0:01:11.8]} 24. Rc1 {[%clk 0:00:08.6]} 24... Nf5 {[%clk 0:01:09]} 25. Bxf5
{[%clk 0:00:07.8]} 25... gxf5 {[%clk 0:01:09.9]} 26. Qf2 {[%clk 0:00:06.3]}
26... Rhg8 {[%clk 0:01:08.7]} 27. Re1 {[%clk 0:00:07]} 27... Qb4 {[%clk
0:01:02.5]} 28. Rc1 {[%clk 0:00:05.4]} 28... Bxh4 {[%clk 0:00:51.3]} 29. Bc5
{[%clk 0:00:05.7]} 29... Qa4 {[%clk 0:00:48.3]} 30. Qe3 {[%clk 0:00:04.4]} 30...
Bxg3 {[%clk 0:00:44.4]} 31. Rg2 {[%clk 0:00:03.9]} 31... h4 {[%clk 0:00:43.3]}
32. Be7 {[%clk 0:00:02.3]} 32... Nxe7 {[%clk 0:00:35.8]} 33. Qxe7 {[%clk
0:00:03.2]} 33... d2 {[%clk 0:00:29.2]} 34. Rd1 {[%clk 0:00:03.1]} 34... Bxf4
{[%clk 0:00:24.9]} 35. Rxg8 {[%clk 0:00:02.7]} 35... Rxg8+ {[%clk 0:00:24.4]}
36. Kh1 {[%clk 0:00:03.6]} 36... Qc6 {[%clk 0:00:21.6]} 37. Nd4 {[%clk
0:00:02.8]} 37... Qxc4 {[%clk 0:00:17.8]} 38. Nxf5 {[%clk 0:00:01.6]} 38... Qd5
{[%clk 0:00:16.6]} 39. Qe4 {[%clk 0:00:01.8]} 39... Qxe4 {[%clk 0:00:16.6]} 40.
fxe4 {[%clk 0:00:02.6]} 40... f6 {[%clk 0:00:16.6]} 41. Nxh4 {[%clk 0:00:02.7]}
41... Rh8 {[%clk 0:00:15.5]} 42. Kg2 {[%clk 0:00:03.4]} 42... Rxh4 {[%clk
0:00:16.1]} 43. Kf3 {[%clk 0:00:04.3]} 43... Be5 {[%clk 0:00:16]} 44. Rg1 {[%clk
0:00:05.2]} 44... Rh2 {[%clk 0:00:16.2]} 45. Rg8# {[%clk 0:00:05.6]} 1-0